Workbook

Sheet 000
A1: N | B1: X | C1: Y | D1: H | E1: ∆X | F1: ∆Y | G1: ∆H | H1: S | I1: Cosα | J1: Sinα | K1: ГК (Cos) | L1: h пр | M1: h уг | N1: h v | O1: ∆h | P1: D | Q1: Cosγ | R1: Tanγ | S1: γ | V1: α⁰ | W1: α′ | X1: α″ | Y1: γ⁰ | Z1: γ′ | AA1: γ″
A2: stn | B2: 100.000 | C2: 100.000 | D2: 0.000 | L2: 1.2 | M2: 0.4 | AB2: =A2 -> stn | AC2: =L2 -> 1.2 | AD2: =B2 -> 100.000 | AE2: =C2 -> 100.000 | AF2: =D2 -> 0.000
A3: zero | B3: 200 | C3: 280 | D3: 2 | E3: =B3-$B$2 -> 100 | F3: =C3-$C$2 -> 180 | G3: =D3-$D$2 -> 2 | H3: =SQRT(E3*E3+F3*F3) -> 205.9126028 | I3: =E3/H3 -> 0.4856429312 | J3: =F3/H3 -> 0.8741572761 | K3: =IF(F3>=0,ACOS(I3)*57.29578,360-ACOS(I3)*57.29578) -> 60.94539642 | M3: 0.4 | N3: 1.600 | O3: =(D3+M3+N3)-($D$2+$L$2+$M$2) -> 2.4 | P3: =SQRT(H3^2+O3^2) -> 205.9265889 | Q3: =ACOS(H3/P3)*57.29578 -> 0.6677767352 | R3: =ATAN(O3/H3)*57.29578 -> 0.6677767352 | S3: =90-R3 -> 89.33222326 | T3: 0 | U3: 0 | V3: =FLOOR(U3,1) -> 0 | W3: =FLOOR((U3-V3)*60,1) -> 0 | X3: =((U3-V3)*60-W3)*60 -> 0 | Y3: =FLOOR(S3,1) -> 89 | Z3: =FLOOR((S3-Y3)*60,1) -> 19 | AA3: =CEILING(((S3-Y3)*60-Z3)*60,1) -> 57 | AB3: =A3 -> zero | AC3: =N3 -> 1.600 | AD3: =(V3&".")&(IF(W3<10, 0&W3, W3))&(IF(X3<10, 0&X3, X3)) -> 0.0000 | AE3: =(Y3&".")&(IF(Z3<10, 0&Z3, Z3))&(IF(AA3<10, 0&AA3,AA3)) -> 89.1957 | AF3: =P3 -> 205.9265889 | AG3: =((V3+180)&".")&(IF(W3<10, 0&W3, W3))&(IF(X3<10, 0&X3, X3)) -> 180.0000 | AH3: =((360-Y3)&".")&(IF(Z3<10, 0&Z3, Z3))&(IF(AA3<10, 0&AA3,AA3)) -> 271.1957 | AI3: =AF3 -> 205.9265889
A4: 3 | B4: 150 | C4: 150 | D4: 1 | E4: =B4-$B$2 -> 50 | F4: =C4-$C$2 -> 50 | G4: =D4-$D$2 -> 1 | H4: =SQRT(E4*E4+F4*F4) -> 70.71067812 | I4: =E4/H4 -> 0.7071067812 | J4: =F4/H4 -> 0.7071067812 | K4: =IF(F4>=0,ACOS(I4)*57.29578,360-ACOS(I4)*57.29578) -> 45.00000038 | N4: 2.600 | O4: =(D4+M4+N4)-($D$2+$L$2+$M$2) -> 2 | P4: =SQRT(H4^2+O4^2) -> 70.73895674 | Q4: =ACOS(H4/P4)*57.29578 -> 1.620137438 | R4: =ATAN(O4/H4)*57.29578 -> 1.620137438 | S4: =90-R4 -> 88.37986256 | T4: =K4-$K$3 -> -15.94539604 | U4: =IF(T4<=0, T4+360, IF(T4>360, T4-360, T4)) -> 344.054604 | V4: =FLOOR(U4,1) -> 344 | W4: =FLOOR((U4-V4)*60,1) -> 3 | X4: =CEILING(((U4-V4)*60-W4)*60,1) -> 17 | Y4: =FLOOR(S4,1) -> 88 | Z4: =FLOOR((S4-Y4)*60,1) -> 22 | AA4: =CEILING(((S4-Y4)*60-Z4)*60,1) -> 48 | AB4: 3 | AC4: =N4 -> 2.600 | AD4: =(V4&".")&(IF(W4<10, 0&W4, W4))&(IF(X4<10, 0&X4, X4)) -> 344.0317 | AE4: =(Y4&".")&(IF(Z4<10, 0&Z4, Z4))&(IF(AA4<10, 0&AA4, X4)) -> 88.2217 | AF4: =P4 -> 70.73895674 | AG4: 0
A5: 4 | B5: 150 | C5: 50 | D5: 3 | E5: 50 | F5: -50 | G5: 3 | H5: =SQRT(E5*E5+F5*F5) -> 70.71067812 | I5: 0.7071067812 | J5: -0.7071067812 | K5: 314.9999996 | N5: 2.600 | O5: =(D5+M5+N5)-($D$2+$L$2+$M$2) -> 4 | P5: 70.82372484 | Q5: 3.237688174 | R5: 3.237688174 | S5: 86.76231183 | T5: =K5-$K$3 -> 254.0546032 | U5: =IF(T5<=0, T5+360, IF(T5>360, T5-360, T5)) -> 254.0546032 | V5: =FLOOR(U5,1) -> 254 | W5: =FLOOR((U5-V5)*60,1) -> 3 | X5: =CEILING(((U5-V5)*60-W5)*60,1) -> 17 | Y5: =FLOOR(S5,1) -> 86 | Z5: =FLOOR((S5-Y5)*60,1) -> 45 | AA5: 45 | AB5: 4 | AC5: 2.600 | AD5: =(V5&".")&(IF(W5<10, 0&W5, W5))&(IF(X5<10, 0&X5, X5)) -> 254.0317 | AE5: 86.4517 | AF5: 70.82372484 | AG5: -1
A6: 5 | B6: 50 | C6: 50 | D6: 0.5 | E6: -50 | F6: -50 | G6: 0.5 | H6: 70.71067812 | I6: -0.7071067812 | J6: -0.7071067812 | K6: 224.9999989 | N6: 2.600 | O6: 1.5 | P6: 70.72658623 | Q6: 1.215244772 | R6: 1.215244772 | S6: 88.78475523 | T6: 164.0546024 | U6: 164.0546024 | V6: 164 | W6: 3 | X6: 17 | Y6: 88 | Z6: 47 | AA6: 6 | AB6: 5 | AC6: 2.600 | AD6: 164.0317 | AE6: 88.4706 | AF6: 70.72658623 | AG6: -2
A7: 6 | B7: 50 | C7: 150 | D7: 2 | E7: -50 | F7: 50 | G7: 2 | H7: 70.71067812 | I7: -0.7071067812 | J7: 0.7071067812 | K7: 135.0000011 | N7: 2.600 | O7: 3 | P7: 70.77428912 | Q7: 2.429397135 | R7: 2.429397135 | S7: 87.57060286 | T7: 74.05460473 | U7: 74.05460473 | V7: 74 | W7: 3 | X7: 17 | Y7: 87 | Z7: 34 | AA7: 15 | AB7: 6 | AC7: 2.600 | AD7: 74.0317 | AE7: 87.3417 | AF7: 70.77428912 | AG7: -3
A8: 7 | B8: 123 | C8: 104 | D8: -2 | E8: 23 | F8: 4 | G8: -2 | H8: 23.34523506 | I8: 0.9852117548 | J8: 0.1713411748 | K8: 9.865807027 | N8: 2.600 | O8: -1 | P8: 23.36664289 | Q8: 2.452782124 | R8: -2.452782124 | S8: 92.45278212 | T8: -51.07958939 | U8: 308.9204106 | V8: 308 | W8: 55 | X8: 14 | Y8: 92 | Z8: 27 | AA8: 11 | AB8: 7 | AC8: 2.600 | AD8: 308.5514 | AE8: 92.2714 | AF8: 23.36664289 | AG8: -4
A9: 8 | B9: 145 | C9: 8 | D9: -0.2 | E9: 45 | F9: -92 | G9: -0.2 | H9: 102.4158191 | I9: 0.4393852473 | J9: -0.8982987278 | K9: 296.0646635 | N9: 2.600 | O9: 0.8 | P9: 102.4189436 | Q9: 0.4475450392 | R9: 0.4475450392 | S9: 89.55245496 | T9: 235.1192671 | U9: 235.1192671 | V9: 235 | W9: 7 | X9: 10 | Y9: 89 | Z9: 33 | AA9: 9 | AB9: 8 | AC9: 2.600 | AD9: 235.0710 | AE9: 89.3309 | AF9: 102.4189436 | AG9: -5
A10: 9 | B10: 12 | C10: 40 | D10: -1 | E10: -88 | F10: -60 | G10: -1 | H10: 106.5082156 | I10: -0.8262273428 | J10: -0.5633368246 | K10: 214.2868757 | N10: 2.600 | O10: 0 | P10: 106.5082156 | Q10: 0 | R10: 0 | S10: 90 | T10: 153.3414793 | U10: 153.3414793 | V10: 153 | W10: 20 | X10: 30 | Y10: 90 | Z10: 0 | AA10: 0 | AB10: 9 | AC10: 2.600 | AD10: 153.2030 | AE10: 90.0000 | AF10: 106.5082156 | AG10: -6
A11: 10 | B11: 34 | C11: 230 | D11: -4 | E11: -66 | F11: 130 | G11: -4 | H11: 145.7943757 | I11: -0.4526923598 | J11: 0.8916667693 | K11: 116.9165556 | N11: 3.600 | O11: -2 | P11: 145.8080931 | Q11: 0.7859313653 | R11: -0.7859313653 | S11: 90.78593137 | T11: 55.97115919 | U11: 55.97115919 | V11: 55 | W11: 58 | X11: 17 | Y11: 90 | Z11: 47 | AA11: 10 | AB11: 10 | AC11: 3.600 | AD11: 55.5817 | AE11: 90.4717 | AF11: 145.8080931 | AG11: -7

Sheet 111
A1: JOB | B1: 01.09.14TR,
A2: INST | B2: GPT-3100 Ver.5.32
A3: UNITS | B3: M,D
A4: STN | B4: ='000'!AB2&"," -> stn, | C4: ='000'!AC2&"," -> 1.2,
A5: XYZ | B5: ='000'!AE2&"," -> 100.000, | C5: ='000'!AD2&"," -> 100.000, | D5: ='000'!AF2&"," -> 0.000,
A6: BS | B6: ='000'!AB3&"," -> zero, | C6: ='000'!AC3 -> 1.600
A7: SD | B7: ='000'!AD3&"," -> 0.0000, | C7: ='000'!AE3&"," -> 89.1957, | D7: ='000'!AF3 -> 205.9265889
A8: BS | B8: =B6 -> zero, | C8: =C6 -> 1.600
A9: SD | B9: ='000'!AG3&"," -> 180.0000, | C9: ='000'!AH3&"," -> 271.1957, | D9: ='000'!AI3 -> 205.9265889
A10: SS | B10: =OFFSET('000'!AB4,'000'!AG4,0)&"," -> 3, | C10: =OFFSET('000'!AC4,'000'!AG4,0) -> 2.600
A11: SD | B11: =OFFSET('000'!AD4,'000'!AG4,0)&"," -> 344.0317, | C11: =OFFSET('000'!AE4,'000'!AG4,0)&"," -> 88.2217, | D11: =OFFSET('000'!AF4,'000'!AG4,0) -> 70.73895674
A12: SS | B12: =OFFSET('000'!AB6,'000'!AG5,0)&"," -> 4, | C12: =OFFSET('000'!AC6,'000'!AG5,0) -> 2.600
A13: SD | B13: =OFFSET('000'!AD6,'000'!AG5,0)&"," -> 254.0317, | C13: =OFFSET('000'!AE6,'000'!AG5,0)&"," -> 86.4517, | D13: =OFFSET('000'!AF6,'000'!AG5,0) -> 70.82372484
A14: SS | B14: =OFFSET('000'!AB8,'000'!AG8,0)&"," -> 3, | C14: =OFFSET('000'!AC8,'000'!AG8,0) -> 2.600
A15: SD | B15: =OFFSET('000'!AD8,'000'!AG8,0)&"," -> 344.0317, | C15: =OFFSET('000'!AE8,'000'!AG8,0)&"," -> 88.2217, | D15: =OFFSET('000'!AF8,'000'!AG8,0) -> 70.73895674
A16: SS | B16: =OFFSET('000'!AB10,'000'!AG9,0)&"," -> 4, | C16: =OFFSET('000'!AC10,'000'!AG9,0) -> 2.600
A17: SD | B17: =OFFSET('000'!AD10,'000'!AG9,0)&"," -> 254.0317, | C17: =OFFSET('000'!AE10,'000'!AG9,0)&"," -> 86.4517, | D17: =OFFSET('000'!AF10,'000'!AG9,0) -> 70.82372484
A18: SS | B18: =OFFSET('000'!AB12,'000'!AG12,0)&"," -> , | C18: =OFFSET('000'!AC12,'000'!AG12,0) -> 0
A19: SD | B19: =OFFSET('000'!AD12,'000'!AG12,0)&"," -> , | C19: =OFFSET('000'!AE12,'000'!AG12,0)&"," -> , | D19: =OFFSET('000'!AF12,'000'!AG12,0) -> 0

Sheet Лист3
A1: 1 | B1: 2 | C1: 3 | D1: 4 | E1: 5
A2: а | B2: б | C2: в | D2: в | E2: г
H3: =A1 -> 1 | I3: =B1 -> 2 | J3: =C1 -> 3 | K3: 4 | L3: 5 | N3: 1 | O3: -1
H4: =OFFSET(A1,1,0) -> а | I4: =OFFSET(B1,1,0) -> б | J4: =OFFSET(C1,1,0) -> в | K4: в | L4: г | N4: 2 | O4: -2
N5: 3 | O5: -3
N6: 4 | O6: -4
N7: 5 | O7: -5
N8: 6 | O8: -6
N9: 7 | O9: -7
N10: 8 | O10: -8
N11: 9 | O11: -9
N12: 10 | O12: -10
N13: 11 | O13: -11
